bitfinex/quotes_ETHUSD_20240731
["timestamp","ask_amount","ask_price","bid_price","bid_amount"]
[1722436983718,1.25284689,3323.6,3323.5,3.1260911]
[1722436984318,1.56605862,3323.7,3323.6,3.00878]
[1722436984773,1.56605862,3323.7,3323.5,0.1172211]
[1722436985061,1.56605862,3323.6,3323.4,2.2519]
[1722436985218,1.56605862,3323.5,3323.4,2.777994]
[1722436985614,1.56605862,3323.5,3323.4,5.786944]
[1722436985818,1.25273664,3323.7,3323.5,3.00887]
[1722436986018,1.25273664,3323.7,3323.6,9.02634]
[1722436986261,1.56605862,3324.0,3323.9,3.00851]
[1722436986427,1.56605862,3324.0,3323.9,6.317871]
[1722436986647,1.56605862,3324.0,3323.9,3.309361]
[1722436986927,1.87927034,3324.3,3324.1,3.00827]
[1722436987468,3.00785,3324.7,3324.1,3.00827]
[1722436987469,1.87927034,3324.4,3324.1,3.00827]
[1722436987765,1.87927034,3324.4,3324.2,3.00823]
[1722436987978,1.87927034,3324.3,3324.0,3.00838]
[1722436988124,1.87927034,3324.3,3324.0,3.6401191]
[1722436988125,1.87877431,3324.3,3324.0,3.6401191]
[1722436988322,1.87877431,3324.3,3324.0,6.6484691]
[1722436988525,1.87877431,3324.3,3324.0,3.6401191]
[1722436988831,6.0077,3324.8,3324.0,3.6401191]
[1722436988832,1.56559422,3324.1,3324.0,6.6485391]
[1722436989639,1.56559422,3324.1,3324.0,3.6401191]
[1722436989840,1.87813808,3324.3,3324.0,3.6401191]
[1722436990275,6.0077,3324.8,3324.2,3.00824]
[1722436990276,1.87813808,3324.4,3324.2,3.00824]
[1722436990442,1.87813808,3324.3,3324.2,3.00824]
[1722436990640,1.87813808,3324.3,3324.0,3.6401191]
[1722436991133,1.87813808,3324.3,3324.0,0.6317791]
[1722436991356,1.87813808,3324.2,3323.7,3.00864]
[1722436991539,1.56391244,3323.9,3323.7,3.00864]
[1722436991742,1.56391244,3323.9,3323.6,3.00871]
[1722436991959,1.25095435,3323.7,3323.6,3.00871]
[1722436992280,1.25071961,3323.7,3323.3,2.665]
[1722436992426,1.25071961,3323.7,3323.2,3.00909]
[1722436992628,1.25071961,3323.5,3323.3,3.00905]
[1722436992976,1.87813808,3323.9,3323.4,3.00896]
[1722436992977,1.56297381,3323.7,3323.4,3.00896]
[1722436993321,1.56297381,3323.7,3323.4,6.07809769]
[1722436993322,1.25036956,3323.5,3323.4,6.07809769]
[1722436993610,1.25036956,3323.6,3323.5,6.01774]
[1722436993806,1.56297381,3323.7,3323.5,6.01774]
[1722436993807,1.56297381,3323.7,3323.6,3.00878]
[1722436993981,1.56297381,3323.7,3323.5,3.00884]
[1722436994209,1.56297381,3323.7,3323.6,3.00878]
[1722436994388,1.56297381,3323.8,3323.6,3.00878]
[1722436994582,1.56297381,3323.7,3323.6,3.00878]
[1722436995310,1.87556858,3323.9,3323.3,5.67399]
[1722436995530,1.87556858,3323.9,3323.4,3.00896]
[1722436995531,1.56244903,3323.6,3323.4,3.00896]
[1722436996016,1.56244903,3323.6,3323.5,6.01774]
[1722436996170,1.24960741,3323.8,3323.7,3.00864]
[1722436996375,1.87436114,3324.0,3323.7,3.00869]
[1722436996571,1.56185113,3323.8,3323.7,3.00869]
[1722436996885,3.00824,3324.2,3323.5,3.0088]
[1722436996886,1.87436114,3324.0,3323.5,3.0088]
[1722436997113,1.5620194,3323.7,3323.6,3.00877]
[1722436997431,1.5620194,3323.7,3323.6,6.01755]
[1722436997593,8.43813,3324.6,3323.6,6.01755]
[1722436997594,1.24952993,3323.8,3323.7,3.00869]
[1722436997794,1.5620194,3323.9,3323.7,5.67369]
[1722436997973,1.2496428,3323.9,3323.8,6.0172]
[1722436998175,1.2496428,3323.9,3323.8,6.13490423]
[1722436998375,1.5620194,3323.9,3323.8,3.8404309]
[1722436998571,1.5620194,3323.9,3323.8,3.12630423]
[1722436999404,1.56199029,3323.9,3323.8,3.12630423]
[1722436999803,1.56199029,3324.0,3323.9,3.00851]
[1722437000179,1.56162423,3324.0,3323.9,3.12620376]
[1722437000618,1.87438835,3324.3,3323.9,3.12620376]
[1722437000917,1.5614262,3324.0,3323.9,3.12620376]
[1722437001120,1.87438835,3324.2,3323.9,0.11769376]
[1722437001284,1.87438835,3324.1,3323.9,0.11769376]
[1722437001484,1.87438835,3324.1,3323.8,3.0086]
[1722437001795,1.87438835,3324.1,3323.8,3.00852]
[1722437002114,1.56134703,3323.9,3323.8,3.00852]
[1722437002420,5.18678641,3324.5,3323.8,6.01705]
[1722437002421,1.56134703,3324.0,3323.8,6.01705]
[1722437002643,3.00815,3324.4,3323.8,3.00852]
[1722437002944,1.56165042,3323.9,3323.8,3.00852]
[1722437003095,1.56165042,3323.9,3323.6,3.00872]
[1722437003413,1.56198334,3323.8,3323.7,3.00869]
[1722437003622,1.56198334,3323.9,3323.8,3.0086]
[1722437004415,1.87398051,3324.3,3323.9,3.00851]
[1722437004615,1.87398051,3324.3,3324.0,3.00842]
[1722437005692,3.31496357,3324.5,3324.0,3.00842]
[1722437006022,1.87424106,3324.4,3324.2,3.00824]
[1722437006323,0.31496357,3324.5,3324.4,3.00806]
[1722437007137,1.87424106,3324.6,3324.4,3.00806]
[1722437007492,1.87424106,3324.5,3324.3,3.00814]
[1722437008928,1.87571425,3324.5,3324.3,3.00814]
[1722437009508,1.87571425,3324.5,3324.4,3.00806]
[1722437009712,1.87571425,3324.6,3324.4,3.00806]
[1722437010536,1.87571425,3324.6,3324.5,6.01594]
[1722437010764,1.87653809,3325.0,3324.9,3.00754]
[1722437011311,1.87653809,3325.0,3324.6,3.00782]
[1722437011518,3.0074,3325.2,3324.6,3.00782]
[1722437011519,1.87653809,3324.9,3324.6,3.00782]
[1722437011725,1.87653809,3324.9,3324.5,3.00796]
[1722437011911,1.87653809,3324.8,3324.5,3.0079]
[1722437012112,1.87669394,3324.8,3324.5,3.0079]
[1722437012544,1.87669394,3324.8,3324.3,3.0081]
[1722437013078,1.56418216,3324.5,3324.4,0.11725233]
[1722437013279,3.00766,3324.9,3324.4,0.11725233]
[1722437013280,1.87669394,3324.7,3324.4,0.11725233]
[1722437013418,1.87669394,3324.7,3324.4,3.12526233]
[1722437013620,1.87669394,3324.7,3324.4,0.11725233]
[1722437013817,1.87669394,3324.5,3324.4,0.11725233]
[1722437014070,0.48843539,3324.7,3323.8,3.00855]
[1722437014071,3.00812,3324.4,3323.8,3.00855]
[1722437014287,1.56437563,3323.9,3323.8,3.00854]
[1722437014675,1.87725076,3324.0,3323.9,3.00845]
[1722437014973,1.87725076,3324.0,3323.8,3.00854]
[1722437015271,3.00806,3324.4,3323.9,3.00847]
[1722437015455,2.19012902,3324.3,3324.1,3.00825]
[1722437015762,2.19012902,3324.4,3324.1,3.00825]
[1722437015952,2.19012902,3324.3,3324.0,3.00841]
[1722437016442,2.19012902,3324.3,3324.1,3.00828]
[1722437016639,2.19012902,3324.3,3323.8,3.00855]
[1722437016965,1.8776398,3324.0,3323.9,3.00851]
[1722437017327,1.8776398,3324.0,3323.9,6.01702]
[1722437017656,2.19012902,3324.3,3324.0,3.00842]
[1722437017960,2.19012902,3324.3,3323.9,3.0085]
[1722437018159,2.19036977,3324.2,3323.7,6.07361]
[1722437018358,1.87758076,3323.9,3323.8,3.0086]
[1722437018559,1.87722634,3323.9,3323.8,3.0086]
[1722437018764,5.39603,3324.6,3324.0,3.00834]
[1722437018920,2.18998616,3324.3,3324.1,3.00832]
[1722437019268,7.41,3324.7,3324.1,2.665]
[1722437019269,1.87753191,3324.2,3324.1,2.665]
[1722437019559,7.41,3324.7,3324.1,5.67325]
[1722437019560,1.87753191,3324.3,3324.1,5.67325]
[1722437019724,1.87753191,3324.2,3324.1,8.68158]
[1722437019921,1.87753191,3324.3,3324.2,3.00822]
[1722437020659,7.41,3324.7,3324.4,3.00806]
[1722437020660,1.87753191,3324.5,3324.4,3.00806]
[1722437020863,1.87753191,3324.5,3324.4,6.01612]
[1722437021072,7.41,3324.7,3324.5,3.00797]
[1722437021262,2.18998616,3324.9,3324.7,3.00779]
[1722437021470,3.00724,3325.3,3324.7,3.00773]
[1722437021622,1.87788381,3324.9,3324.6,3.00788]
[1722437021830,5.49897844,3325.2,3324.5,2.665]
[1722437021831,1.87788381,3324.8,3324.5,2.665]
[1722437022020,1.87788381,3324.8,3324.4,3.00798]
[1722437022226,1.87788381,3324.8,3324.1,2.665]
[1722437022227,2.19086444,3325.0,3324.7,3.00779]
[1722437022426,1.87759531,3324.8,3324.6,3.00787]
[1722437022738,1.87742188,3324.7,3324.5,3.00796]
[1722437022938,1.87742188,3324.7,3324.6,3.00788]
[1722437023524,1.87742188,3324.7,3324.1,2.665]
[1722437023858,1.25132275,3324.2,3324.1,8.68166]
[1722437024021,3.00753,3325.0,3324.4,3.008]
[1722437024228,0.6015,3324.9,3324.3,3.00814]
[1722437024461,3.00776,3324.8,3324.0,3.00835]
[1722437024641,1.5642086,3324.2,3324.0,3.00838]
[1722437024964,1.56422671,3324.2,3324.1,3.00833]
[1722437025140,1.87705032,3324.4,3324.1,3.00833]
[1722437025463,1.87705032,3324.4,3324.0,3.0084]
[1722437025662,1.87705032,3324.2,3323.9,3.0085]
[1722437025988,1.87705032,3324.1,3323.8,3.00859]
[1722437026273,0.18770503,3324.4,3323.8,3.00859]
[1722437026274,1.87705032,3324.0,3323.8,3.00859]
[1722437027363,1.87705032,3324.0,3323.7,3.40869]
[1722437027576,1.87705032,3323.9,3323.7,3.40869]
[1722437027983,1.87730481,3323.9,3323.7,3.40869]
[1722437028137,1.87730481,3323.9,3323.7,0.4]
[1722437028339,1.87730481,3323.9,3323.7,3.40862]
[1722437029348,1.87730481,3323.9,3323.7,0.4]
[1722437029678,0.18773048,3323.9,3323.7,0.4]
[1722437030250,2.37791943,3323.9,3323.7,0.4]
[1722437030450,0.18773048,3323.9,3323.7,0.4]
[1722437030783,2.19018895,3323.8,3323.7,0.4]
[1722437031384,2.37791943,3323.9,3323.7,0.4]
[1722437031579,5.73742489,3323.8,3323.7,0.4]
[1722437031734,3.54723594,3323.8,3323.7,0.4]
[1722437031940,5.73718955,3323.8,3323.7,0.4]
[1722437032185,5.73715731,3323.8,3323.7,0.4]
[1722437032490,2.18992137,3323.8,3323.7,0.4]
[1722437032703,2.18992137,3323.9,3323.7,0.4]
[1722437032854,4.44582137,3323.8,3323.7,0.4]
[1722437033375,7.45442137,3323.8,3323.7,0.4]
[1722437033591,8.50072051,3323.8,3323.7,0.4]
[1722437034140,2.18992137,3323.8,3323.7,0.4]
[1722437034466,3.0,3324.0,3323.7,0.4]
[1722437034787,1.87667383,3323.8,3323.7,3.40869]
[1722437034950,6.00792,3324.6,3323.7,3.40869]
[1722437034951,1.87667383,3324.0,3323.9,6.01702]
[1722437035282,9.7655,3324.7,3324.0,3.00842]
[1722437035283,1.56422912,3324.1,3324.0,3.00842]
[1722437035485,1.56422912,3324.1,3324.0,6.32369848]
[1722437035806,1.87667383,3324.5,3324.4,3.00806]
[1722437036088,7.41,3324.7,3324.4,3.00806]
[1722437036089,9.5993853,3324.7,3324.4,3.00806]
[1722437036290,1.87748,3324.5,3324.4,3.00806]
[1722437036998,1.87748,3324.5,3324.4,6.01612]
[1722437037151,1.87748,3324.7,3324.6,3.00788]
[1722437037361,1.87748,3324.7,3324.5,3.00797]
[1722437037537,1.87712524,3324.7,3324.5,3.00797]
[1722437038952,1.87712524,3324.7,3324.5,6.01588]
[1722437039183,1.87712524,3324.7,3324.5,3.00791]
[1722437039341,1.87712524,3324.7,3324.6,3.00788]
[1722437039780,1.87712524,3324.7,3324.6,6.01576]
[1722437039988,2.3555,3325.2,3324.7,6.01558]
[1722437039989,1.87712524,3324.8,3324.7,6.01558]
[1722437040297,1.87712524,3325.2,3324.9,3.0076]
[1722437040590,1.56404518,3325.0,3324.9,8.6802]
[1722437040915,1.87681352,3325.3,3325.2,3.00733]
[1722437041047,1.87681352,3325.4,3325.2,3.00733]
[1722437041485,1.87681352,3325.4,3325.3,3.00724]
[1722437041788,8.04333364,3326.0,3325.4,3.00709]
[1722437041789,1.87681352,3325.6,3325.4,3.00709]
[1722437041953,1.87681352,3325.7,3325.4,3.00709]
[1722437042158,3.00727,3325.3,3324.7,3.00772]
[1722437042357,1.56344551,3324.8,3324.7,3.00772]
[1722437042674,1.56344551,3324.8,3324.7,0.11707301]
[1722437042675,1.56318853,3324.8,3324.7,0.11707301]
[1722437042863,5.75856085,3324.8,3324.7,0.11707301]
[1722437043062,5.75856085,3324.8,3323.9,0.4]
[1722437043063,3.00784,3324.7,3323.9,0.4]
[1722437043385,1.56324786,3324.2,3324.1,3.00833]
[1722437043886,4.94048663,3324.8,3324.2,3.00823]
[1722437043887,1.56333615,3324.3,3324.2,3.00823]
[1722437044197,1.25085818,3324.3,3324.2,0.11720249]
[1722437044394,1.56357273,3324.5,3324.2,0.70226692]
[1722437044688,1.25098558,3324.4,3324.3,6.07645596]
[1722437044903,1.56357273,3324.6,3324.5,6.01594]
[1722437044904,1.25098558,3324.6,3324.5,6.01594]
[1722437045119,1.25098558,3324.8,3324.6,3.00788]
[1722437045247,1.25098558,3324.9,3324.7,6.22279]
[1722437045451,1.25098558,3325.0,3324.9,6.0152]
[1722437045706,1.25098558,3325.1,3325.0,6.01502]
[1722437046068,1.25098558,3325.2,3325.1,9.02226]
[1722437046245,1.25098558,3325.4,3325.1,5.67242]
[1722437046482,1.25098558,3325.4,3325.3,6.01448]
[1722437046757,3.00676,3325.9,3325.3,0.1170456]
[1722437047053,1.56311627,3325.4,3325.3,3.18442412]
[1722437047374,1.87573952,3325.6,3325.4,3.00711]
[1722437047894,1.87573952,3325.7,3325.5,0.11702468]
[1722437048193,5.33076,3326.2,3325.5,3.12402468]
[1722437048194,1.87573952,3325.8,3325.5,3.12402468]
[1722437049393,1.87573952,3325.8,3325.6,3.00696]
[1722437049603,1.87573952,3325.8,3325.6,0.11701422]
[1722437049965,1.87573952,3325.9,3325.6,0.11701422]
[1722437050269,1.87470945,3325.8,3325.5,0.2]
[1722437050485,3.00666,3326.0,3325.5,0.2]
[1722437050486,1.56233244,3325.6,3325.5,0.2]
[1722437050861,1.56233244,3325.6,3325.5,3.32408468]
[1722437051061,1.56233244,3325.7,3325.6,3.00697]
[1722437051262,1.87470945,3326.0,3325.9,3.0067]
[1722437051487,1.87470945,3326.0,3325.9,5.67162]
[1722437051488,1.24939382,3326.0,3325.9,5.67162]
[1722437051687,0.47195986,3326.3,3326.2,3.00643]
[1722437051688,2.0341985,3326.3,3326.2,3.00643]
[1722437051907,1.56223864,3326.4,3326.3,3.00634]
[1722437052075,2.3067,3326.6,3326.3,3.00634]
[1722437052278,1.56186204,3326.4,3326.3,3.12206246]
[1722437053436,1.87349793,3326.7,3326.5,3.00613]
[1722437053995,1.56124032,3326.6,3326.5,3.00613]
[1722437054046,1.87349793,3326.7,3326.6,3.00607]
[1722437054133,1.87349793,3326.7,3326.6,6.01214]
[1722437054414,1.87349793,3326.7,3326.6,6.56214]
[1722437054436,1.87349793,3326.7,3326.6,6.67764488]
[1722437054993,1.87349793,3326.7,3326.6,3.67157488]
[1722437055324,1.87349793,3326.7,3326.6,3.12157488]
[1722437055485,1.87349793,3326.7,3326.6,0.11550488]
[1722437055678,1.87349793,3326.7,3326.5,3.0061]
[1722437055882,1.87349793,3326.7,3326.6,0.11545673]
[1722437056384,1.24858105,3326.9,3326.6,0.11545673]
[1722437056584,1.24858105,3327.0,3326.6,0.11545673]
[1722437056796,1.24858105,3327.0,3326.6,3.12150673]
[1722437057011,1.24858105,3327.1,3326.6,3.12150673]
[1722437057198,1.24858105,3327.1,3326.6,0.11545673]
[1722437057411,3.00571,3327.0,3326.4,3.00624]
[1722437057584,3.00571,3327.0,3326.7,0.11300405]
[1722437057784,3.00571,3327.0,3326.5,3.00616]
[1722437057985,0.581288,3327.1,3326.6,0.1130145]
[1722437058421,3.00576,3327.0,3326.6,0.1130145]
[1722437058643,3.48932291,3327.0,3326.6,0.1130145]
[1722437058782,3.48932291,3327.0,3326.5,3.00615]
[1722437058783,0.48356291,3327.0,3326.5,3.00615]
[1722437058983,0.48356291,3327.0,3326.6,0.1130145]
[1722437059233,0.48356291,3327.0,3326.6,3.1190745]
[1722437059388,3.586908,3327.1,3326.6,3.1190745]
[1722437059884,3.586908,3327.1,3326.6,0.1130145]
[1722437062425,3.00581,3326.9,3326.6,0.1130145]
[1722437062594,3.00581,3326.9,3326.3,5.67127]
[1722437063233,3.00581,3326.9,3326.4,0.11303541]
[1722437063425,3.00612,3326.6,3326.0,3.0066]
[1722437063582,8.96565562,3327.2,3325.5,6.065]
[1722437063583,1.24858105,3327.0,3325.9,2.665]
[1722437063796,5.44293,3327.2,3326.4,3.00621]
[1722437064020,2.4374,3327.2,3326.7,3.00595]
[1722437064205,2.4374,3327.2,3326.6,6.01199]
[1722437064393,3.00567,3327.1,3326.5,0.11301855]
[1722437064619,2.8059981,3327.2,3326.6,3.00605]
[1722437064952,5.8115381,3327.2,3326.6,3.11901809]
[1722437065137,2.8059981,3327.2,3326.6,3.11901809]
[1722437065344,2.8059981,3327.2,3326.7,3.00597]
[1722437065853,2.8059981,3327.2,3326.6,3.11901809]
[1722437065854,5.44294,3327.2,3326.6,3.11899809]
[1722437066054,5.44294,3327.2,3326.8,0.11302243]
[1722437066232,5.44294,3327.2,3326.6,3.00599]
[1722437066416,5.44294,3327.2,3326.9,0.11301198]
[1722437066614,5.44294,3327.2,3326.6,3.00599]
[1722437066615,8.44855,3327.2,3326.6,3.00599]
[1722437066836,3.00562,3327.1,3327.0,0.11300153]
[1722437067024,3.282255,3327.2,3327.0,0.11300153]
[1722437067349,3.282255,3327.2,3326.6,3.00599]
[1722437067350,6.287835,3327.2,3326.6,3.00599]
[1722437067556,3.282255,3327.2,3326.7,3.00598]
[1722437067752,6.287795,3327.2,3326.7,0.11303288]
[1722437068156,3.00577,3327.0,3326.3,3.00629]
[1722437068455,3.00581,3326.9,3326.3,3.00625]
[1722437068627,3.6344795,3327.1,3326.5,3.00615]
[1722437068811,3.6344795,3327.1,3326.5,3.00608]
[1722437069021,3.6344795,3327.1,3326.6,0.11286074]
[1722437069022,3.00581,3326.9,3326.6,0.11286074]
[1722437069356,3.00612,3326.6,3326.0,3.00656]
[1722437069528,3.00621,3326.5,3326.0,3.00656]
[1722437069728,3.00626,3326.4,3325.9,3.00669]
[1722437070132,2.4927,3326.6,3326.1,3.00643]
[1722437070458,0.36345895,3326.9,3326.3,3.00633]
[1722437070647,2.60351633,3327.1,3326.5,3.00616]
[1722437070850,2.60351633,3327.1,3326.7,3.00591]
[1722437071020,5.60914633,3327.1,3326.5,3.00616]
[1722437071221,2.60351633,3327.1,3326.6,3.00604]
[1722437071455,0.31471633,3327.1,3326.6,3.006]
[1722437071755,0.31471633,3327.1,3326.7,3.00597]
[1722437072056,0.31471633,3327.1,3326.5,3.00609]
[1722437072268,3.00571,3327.0,3326.5,3.00609]
[1722437072572,3.00571,3327.0,3326.2,3.00635]
[1722437072573,3.00585,3326.9,3326.6,0.11294401]
[1722437072921,3.95244696,3327.1,3326.4,3.00618]
[1722437073283,3.00589,3326.8,3326.3,3.00628]
[1722437073469,3.00598,3326.7,3326.5,0.11296087]
[1722437073627,3.00598,3326.7,3326.0,3.00654]
[1722437073628,3.00598,3326.7,3326.2,3.00642]
[1722437073963,3.00598,3326.7,3326.6,0.11295042]
[1722437074145,3.00623,3326.5,3325.9,3.00665]
[1722437074332,3.552578,3326.7,3325.6,3.0069]
[1722437074333,3.00634,3326.3,3325.6,3.0069]
[1722437074720,3.00621,3326.5,3325.8,3.00671]
[1722437074917,3.00621,3326.5,3325.9,3.00669]
[1722437075158,3.00621,3326.5,3325.5,0.4]
[1722437075159,3.00621,3326.5,3325.7,3.00683]
[1722437075372,3.00621,3326.5,3325.6,3.00692]
[1722437075373,3.00635,3326.3,3325.8,3.00678]
[1722437075567,3.3614858,3326.5,3325.8,3.00678]
[1722437075568,3.0063,3326.4,3325.8,3.00678]
[1722437075917,3.0063,3326.4,3325.8,3.00673]
[1722437076766,3.552528,3326.7,3326.1,3.00647]
[1722437076924,3.00608,3326.6,3326.1,3.00651]
[1722437077122,3.00616,3326.5,3325.9,3.00665]
[1722437077454,3.00616,3326.5,3326.0,3.0066]
[1722437078437,6.70988362,3326.8,3326.1,3.00651]
[1722437078438,4.25050362,3326.7,3326.1,3.00651]
[1722437078641,1.24444362,3326.7,3325.7,3.00685]
[1722437078859,2.4595,3326.8,3326.3,3.00629]
[1722437079182,3.006,3326.7,3326.1,6.01289]
[1722437079379,2.4595,3326.8,3326.1,3.00644]
[1722437079600,2.4595,3326.8,3326.3,3.00629]
[1722437079601,1.2471923,3326.7,3326.3,3.00629]
[1722437079866,3.7066923,3326.8,3326.4,0.10935981]
[1722437080024,3.7066923,3326.8,3326.3,3.00634]
[1722437080231,3.7066923,3326.8,3326.5,3.11549936]
[1722437080435,8.96899038,3327.0,3326.7,3.00591]
[1722437080436,1.2471923,3326.9,3326.7,3.00591]
[1722437080643,1.2471923,3327.0,3326.7,3.00592]
[1722437080869,1.2471923,3327.0,3326.8,3.11518839]
[1722437081080,0.31471633,3327.1,3326.8,3.11518839]
[1722437081081,1.56190863,3327.1,3326.8,3.11518839]
[1722437081226,1.56190863,3327.1,3326.8,0.10930839]
[1722437081438,1.55899038,3327.0,3326.6,3.006]
[1722437081643,1.15394123,3327.1,3326.6,3.006]
[1722437081644,1.24947681,3326.9,3326.6,3.006]
[1722437081861,2.71293161,3327.1,3326.7,3.00594]
[1722437081862,1.24947681,3327.0,3326.7,3.00594]
[1722437082072,1.24947681,3327.0,3326.5,0.06011584]
[1722437082370,1.24947681,3327.0,3326.6,3.00607]
[1722437082578,1.24947681,3326.9,3326.6,3.00607]
[1722437082758,1.24947681,3327.0,3326.6,3.00607]
[1722437083602,1.24947681,3326.9,3326.6,3.00607]
[1722437085281,1.24947681,3326.8,3326.6,3.00607]
[1722437086591,1.24947681,3326.9,3326.7,3.00598]
[1722437087575,1.24947681,3326.8,3326.7,3.00598]
[1722437087809,1.56237256,3327.0,3326.6,3.00604]
[1722437087810,1.24947681,3326.9,3326.8,3.00589]
[1722437088313,1.56237256,3327.0,3326.6,3.00601]
[1722437088524,1.25010889,3326.7,3326.6,3.00601]
[1722437088821,1.56300916,3326.7,3326.6,3.00601]
[1722437089105,1.56300916,3326.8,3326.6,3.00601]
[1722437089276,1.25062338,3326.7,3326.6,3.00601]
[1722437089476,1.56300916,3326.7,3326.6,3.006]
[1722437090406,1.87561099,3326.9,3326.6,3.006]
[1722437090561,1.87561099,3326.9,3326.7,3.00598]
[1722437090761,1.87561099,3327.0,3326.8,3.00589]
[1722437090962,1.87561099,3327.0,3326.8,3.00583]
[1722437091585,1.87561099,3326.9,3326.6,3.00599]
[1722437091786,0.31471633,3327.1,3326.7,3.00596]
[1722437091993,1.87916246,3326.8,3326.5,3.00609]
[1722437092201,1.87916246,3326.9,3326.5,3.00609]
[1722437092407,1.87916246,3326.8,3326.6,3.00602]
[1722437092607,1.87916246,3326.8,3326.7,3.00598]
[1722437093508,2.3554,3326.8,3326.5,3.00614]
[1722437093732,2.3554,3326.8,3325.7,3.00683]
[1722437093733,3.00639,3326.3,3325.3,10.2872]
[1722437093918,3.00639,3326.3,3325.6,3.00692]
[1722437093919,1.56618225,3325.7,3325.6,3.00692]
[1722437094179,1.8794187,3325.9,3325.4,6.0142]
[1722437094412,8.32192,3326.1,3325.4,3.00708]
[1722437094413,1.56619577,3325.5,3325.4,3.00708]
[1722437094627,1.8794187,3325.7,3325.2,3.00725]
[1722437094827,1.56633511,3325.4,3325.3,3.00724]
[1722437095039,3.00676,3325.9,3325.3,3.00724]
[1722437095205,1.56627672,3325.4,3325.3,3.00724]
[1722437095531,1.88001417,3325.6,3325.3,3.00717]
[1722437095737,1.88001417,3325.6,3325.5,3.00706]
[1722437096175,1.88001417,3325.7,3325.5,3.00706]
[1722437097209,1.88001417,3325.7,3325.2,3.00729]
[1722437097210,1.88001417,3325.7,3325.6,6.01394]
[1722437097514,1.87981567,3325.9,3325.8,6.01358]
[1722437097722,8.09470452,3326.6,3325.8,6.01358]
[1722437097723,2.19334986,3326.1,3325.8,6.01358]
[1722437097915,1.87977055,3325.9,3325.8,3.00679]
[1722437098124,2.19334986,3326.1,3325.9,3.10503585]
[1722437098447,3.00616,3326.5,3325.8,3.1050763]
[1722437098448,2.19306261,3326.2,3325.8,3.1050763]
[1722437098577,2.19306261,3326.2,3326.0,0.09833539]
[1722437098774,3.00644,3326.2,3326.0,0.09833539]
[1722437099016,2.19272556,3326.1,3325.6,3.55693]
[1722437099206,2.19272556,3326.0,3325.7,0.55]
[1722437099416,3.00633,3326.4,3325.5,3.00706]
[1722437099417,1.87946467,3325.8,3325.5,3.00706]
[1722437099594,1.87946467,3325.8,3325.3,3.00719]
[1722437099595,1.87946467,3325.6,3325.3,3.00724]
[1722437099811,2.4532,3325.8,3325.3,3.00724]
[1722437099812,1.56598906,3325.4,3325.3,3.00724]
[1722437100003,1.56598906,3325.4,3325.3,0.55]
[1722437100204,1.87946467,3325.6,3325.3,3.55722]
[1722437100529,1.56588895,3325.4,3325.3,3.55722]
[1722437100703,1.87946467,3325.6,3325.3,3.55722]
[1722437101095,1.87946467,3325.6,3324.9,3.00755]
[1722437101096,5.62044114,3325.6,3324.9,3.00755]
[1722437101299,1.56587813,3325.1,3324.6,3.00783]
[1722437101509,1.56552,3324.9,3324.8,6.01538]
[1722437101830,1.56552,3325.0,3324.9,6.0152]
[1722437102264,9.8632,3325.8,3325.0,3.00751]
[1722437102265,1.56552,3325.1,3325.0,3.00751]
[1722437102817,1.56552,3325.1,3325.0,0.09843998]
[1722437103149,3.00735,3325.2,3324.5,3.00792]
[1722437103352,1.25177466,3324.9,3324.8,3.00769]
[1722437103727,1.25177466,3324.9,3324.7,3.00778]
[1722437103924,2.191728,3325.7,3324.3,37.665]
[1722437103925,1.25177466,3324.8,3324.3,3.00815]
[1722437104134,1.25177466,3324.8,3323.7,3.00865]
[1722437104135,3.00796,3324.6,3323.7,3.00865]
[1722437104357,3.00796,3324.6,3324.1,3.00831]
[1722437104358,1.25177466,3324.6,3324.1,3.00831]
[1722437104528,2.4133,3324.9,3324.5,3.00797]
[1722437104718,2.4133,3324.9,3324.1,0.300831]
[1722437104719,1.2512073,3324.7,3324.6,6.07591272]
[1722437104962,1.2512073,3324.8,3324.7,6.01558]
[1722437105517,1.2512073,3324.8,3324.7,6.56558]
[1722437105721,1.2512073,3324.9,3324.8,6.01538]
[1722437105979,1.2512073,3324.9,3324.8,6.938418]
[1722437106136,1.56400913,3325.1,3324.9,6.0152]
[1722437106137,1.2512073,3325.0,3324.9,6.0152]
[1722437106344,1.2512073,3325.0,3324.7,3.00771]
[1722437106657,1.2512073,3324.9,3324.8,3.00767]
[1722437106860,1.2512073,3324.9,3324.6,2.665]
[1722437106861,1.2512073,3324.9,3324.6,5.6728]
[1722437107222,1.2512073,3324.9,3324.5,3.0079]
[1722437107429,1.2512073,3324.9,3324.6,3.55785]
[1722437107644,2.4949,3325.0,3324.6,3.55785]
[1722437107842,1.24999253,3324.9,3324.7,3.00778]
[1722437108364,1.24999253,3324.9,3324.8,3.00769]
[1722437108525,1.24999253,3325.0,3324.9,6.0152]
[1722437109056,1.24999253,3325.1,3325.0,6.01502]
[1722437109563,1.24999253,3325.1,3325.0,6.56502]
[1722437110001,1.24999253,3325.2,3325.1,9.02226]
[1722437110128,1.56249066,3325.3,3325.2,9.02199]
[1722437110129,1.24999253,3325.3,3325.2,9.02199]
[1722437110445,2.4588,3326.3,3325.3,6.01448]
[1722437110446,1.24999253,3325.4,3325.3,6.01448]
[1722437110628,1.24999253,3325.4,3325.3,6.56448]
[1722437110831,3.00649,3326.2,3325.3,6.56448]
[1722437110832,3.00629,3326.4,3325.6,3.00693]
[1722437111034,1.87459984,3325.8,3325.7,3.00688]
[1722437111371,1.87459984,3325.9,3325.8,3.00679]
[1722437111544,1.87459984,3325.9,3325.6,3.0069]
[1722437111745,1.87459984,3325.8,3325.7,3.55685]
[1722437111961,1.87459984,3325.9,3325.8,3.00679]
[1722437112987,1.87459984,3325.9,3325.8,6.01358]
[1722437113151,2.18703314,3326.2,3325.8,6.01358]
[1722437113152,1.87459984,3326.0,3325.9,3.0067]
[1722437113562,1.87555839,3326.0,3325.9,3.00663]
[1722437113798,1.87555839,3326.0,3325.9,6.56333]
[1722437114090,2.1878427,3326.4,3326.2,3.00642]
[1722437114238,2.1878427,3326.3,3326.2,3.00642]
[1722437114821,2.1878427,3326.3,3326.2,6.01285]
[1722437115121,2.1878427,3326.4,3326.3,3.00634]